lending/lending_fUSD_20240112
["ID","MTS","AMOUNT","RATE_DAILY","PERIOD"]
[311382302,1705071056317,-194.0,0.00038464,2]
[311382303,1705071056327,-339.14064782,0.00038487,2]
[311382304,1705071056338,-160.85935218,0.00038487,2]
[311382305,1705071056348,-489.90736945,0.000385,4]
[311382306,1705071056358,-603.89427969,0.000385,2]
[311382307,1705071056379,-397.3211,0.00027514,2]
[311382308,1705071056391,-112.4889,0.00027514,2]
[311382309,1705071056401,-467.56394374,0.00027788,2]
[311382310,1705071056426,-262.79677064,0.00022582,2]
[311382311,1705071056443,-730.16233626,0.00022582,2]
[311382312,1705071056452,-42.24605626,0.00027788,2]
[311382313,1705071056461,-509.81,0.00028062,2]
[311382314,1705071056470,-509.81,0.00028336,2]
[311382315,1705071056480,-1853.00327887,0.000385,2]
[311382316,1705071056489,-2790.4,0.000385,7]
[311382317,1705071056500,-5999.99153077,0.000385,7]
[311382318,1705071056516,-250.0,0.00027397,2]
[311382319,1705071056526,-10252.65846923,0.000385,7]
[311382320,1705071056535,-299.0,0.000385,7]
[311382321,1705071056545,-201.4052083,0.00038531,7]
[311382322,1705071056554,-150.0,0.000386,30]
[311382323,1705071056563,-115.53632247,0.00038606,7]
[311382324,1705071056575,-36.44416269,0.00038606,7]
[311382325,1705071056584,-245.55,0.00038609,2]
[311382326,1705071056593,-2628.56394378,0.0003871,2]
[311382327,1705071056604,-890.2,0.0003871,2]
[311382329,1705071059315,-268.11,0.0003871,2]
[311382330,1705071059336,-431.0,0.0002861,2]
[311382331,1705071059350,-78.81,0.0002861,2]
[311382332,1705071059360,-22953.97885554,0.0003871,2]
[311382333,1705071059374,-5690.52302484,0.0003871,2]
[311382334,1705071059385,-155.4801192,0.0003871,7]
[311382335,1705071059397,-214.72459986,0.00038732,7]
[311382336,1705071059409,-590.64271789,0.0003874,2]
[311382337,1705071059423,-1090.45316211,0.0003874,2]
[311382338,1705071059435,-152.0,0.00038745,7]
[311382339,1705071059445,-176.03023859,0.00038751,7]
[311382340,1705071059456,-500.0,0.00038765,7]
[311382341,1705071059468,-445.45345309,0.00038767,2]
[311382342,1705071059479,-150.0,0.00038795,2]
[311382343,1705071059490,-150.0,0.00038795,2]
[311382344,1705071059501,-150.0,0.00038795,2]
[311382345,1705071059512,-150.0,0.00038795,2]
[311382346,1705071059523,-150.0,0.00038795,2]
[311382347,1705071059534,-150.0,0.00038795,2]
[311382348,1705071059545,-150.0,0.00038795,2]
[311382349,1705071059557,-150.0,0.000388,30]
[311382350,1705071059568,-212.62608725,0.000388,16]
[311382351,1705071059579,-5075.9181295,0.000388,7]
[311382352,1705071059594,-4156.8618705,0.000388,7]
[311382353,1705071059605,-832.82817654,0.000388,6]
[311382354,1705071059616,-22573.56415898,0.000388,15]
[311382355,1705071059627,-26701.89745549,0.000388,4]
[311382356,1705071059637,-294.982951,0.000388,13]
[311382357,1705071059647,-480.019628,0.000388,8]
[311382358,1705071059657,-1385.56664479,0.00038817,2]
[311382359,1705071059670,-2049.0,0.0003885,5]
[311382360,1705071059681,-160.00244999,0.00038859,4]
[311382361,1705071059691,-160.00244999,0.00038859,4]
[311382362,1705071059702,-160.00244999,0.00038859,5]
[311382363,1705071059713,-160.00244999,0.00038859,4]
[311382364,1705071059723,-214.72459986,0.00038868,7]
[311382365,1705071059735,-176.03023859,0.00038886,7]
[311382366,1705071059746,-9083.03712058,0.000389,7]
[311382367,1705071059757,-105.65954136,0.000389,28]
[311382368,1705071059794,155.23060761,0.0002007,2]
[311382369,1705071059809,-44.34045864,0.000389,28]
[311382370,1705071059819,-2059.24262269,0.000389,7]
[311382371,1705071059831,-712.45036713,0.000389,7]
[311382372,1705071059843,-18.70701018,0.000389,7]
[311382373,1705071059854,-16252.65,0.000389,7]
[311382374,1705071059864,-300.0,0.000389,13]
[311382375,1705071059874,-155.91333088,0.00038946,7]
[311382376,1705071059884,-157.49412757,0.00038968,7]
[311382377,1705071059895,-906.0,0.0003897,120]
[311382378,1705071059909,-272.15,0.0003897,120]
[311382379,1705071059945,-971.0,0.0003897,120]
[311382380,1705071059956,-281.73212903,0.0003898,2]
[311382381,1705071059966,-906.0,0.0003898,120]
[311382382,1705071059976,-150.5,0.0003898,120]
[311382383,1705071059987,-906.0,0.0003898,120]
[311382384,1705071059998,-971.0,0.0003898,120]
[311382385,1705071060009,-971.0,0.0003898,120]
[311382386,1705071060020,-178.93,0.0003898,120]
[311382387,1705071060030,-906.0,0.0003899,120]
[311382388,1705071060040,-150.5,0.0003899,120]
[311382389,1705071060051,-906.0,0.0003899,120]
[311382390,1705071060062,-971.0,0.0003899,120]
[311382391,1705071060073,-294.09,0.0003899,120]
[311382392,1705071060084,-971.0,0.0003899,120]
[311382393,1705071060095,-150.5,0.0003899,120]
[311382394,1705071060106,-18385.01,0.00038998,2]
[311382395,1705071060117,-150.0,0.00038999,2]
[311382396,1705071060128,-100000.0,0.00039,9]
[311382397,1705071060139,-150.0,0.00039,30]
[311382398,1705071060150,-1427.43973993,0.00039,2]
[311382399,1705071060162,-212.8232535,0.00039,7]
[311382400,1705071060173,-167782.28883337,0.00039,2]
[311382401,1705071060184,-223547.93308416,0.00039,2]
[311382402,1705071060203,-509.87111679,0.00028884,2]
[311382403,1705071060214,-1133.6381678,0.00039,2]
[311382404,1705071060227,-2356.43045917,0.00039,2]
[311382405,1705071060239,-44712.65562092,0.00039,2]
[311382406,1705071060250,-370.16516551,0.00039,120]
[311382407,1705071060261,-18299.39673048,0.00039,2]
[311382408,1705071060271,-300.0,0.00039,40]
[311382409,1705071060282,-500.0,0.00039,120]
[311382410,1705071060296,-1786.71744,0.00039,15]
[311382411,1705071060306,-3706.20543646,0.00039,2]
[311382412,1705071060320,-20775.89383924,0.00039,5]
[311382413,1705071060330,-309.2029798,0.00039,40]
[311382414,1705071060345,-225.59858686,0.00039,4]
[311382415,1705071060356,-391.0,0.00039,2]
[311382416,1705071060367,-25155.70038363,0.00039,2]
[311382417,1705071060378,-168.33500258,0.00039,5]
[311382418,1705071060389,-977.78504258,0.00039,4]
[311382419,1705071060400,-1600.0,0.00039,3]
[311382420,1705071060415,-3000.0,0.00039,21]
[311382421,1705071060426,-1038.2292264,0.00039,8]
[311382422,1705071060437,-3000.0,0.0003901,21]
[311382423,1705071060448,-5466.558368,0.0003902,21]
[311382424,1705071060458,-243.56161504,0.00039049,7]
[311382425,1705071060469,-151.54484705,0.00039064,3]
[311382426,1705071060480,-176.03023859,0.00039077,7]
[311382427,1705071060490,-157.66,0.000391,3]
[311382428,1705071060500,-157.66,0.000391,3]
[311382429,1705071060511,-157.66,0.000391,3]
[311382430,1705071060522,-157.66,0.000391,3]
[311382431,1705071060533,-157.66,0.000391,3]
[311382432,1705071060543,-157.66,0.000391,3]
[311382433,1705071060555,-1016.81,0.000391,3]
[311382434,1705071060566,-1016.81,0.000391,3]
[311382435,1705071060577,-1016.81,0.000391,3]
[311382436,1705071060588,-1016.81,0.000391,3]
[311382437,1705071060599,-1016.81,0.000391,3]
[311382438,1705071060610,-1016.81,0.000391,3]
[311382439,1705071060620,-1016.81,0.000391,3]
[311382440,1705071060631,-1016.81,0.000391,3]
[311382441,1705071060642,-1016.81,0.000391,3]
[311382442,1705071060652,-1016.81,0.000391,3]
[311382443,1705071060665,-1016.81,0.000391,3]
[311382444,1705071060676,-1016.81,0.000391,3]
[311382445,1705071060688,-1016.81,0.000391,3]
[311382446,1705071060699,-1016.81,0.000391,3]
[311382447,1705071060712,-1016.81,0.000391,3]
[311382448,1705071060723,-1016.81,0.000391,3]
[311382449,1705071060733,-1016.81,0.000391,3]
[311382450,1705071060744,-1016.81,0.000391,3]
[311382451,1705071060757,-1016.81,0.000391,3]
[311382452,1705071060768,-1016.81,0.000391,3]
[311382453,1705071060778,-152.45486422,0.0003911,7]
[311382454,1705071060789,-333.52,0.00039122,2]
[311382455,1705071060800,-153.76348353,0.00039123,7]
[311382456,1705071060810,-160.17216907,0.00039123,7]
[311382457,1705071060822,-243.56161504,0.00039135,7]
[311382458,1705071060832,-176.03023859,0.00039152,7]
[311382459,1705071060843,-201.4052083,0.00039156,7]
[311382460,1705071060855,-201.4052083,0.00039162,7]
[311382461,1705071060865,-201.4052083,0.0003917,7]
[311382462,1705071060876,-668.488715,0.00039178,14]
[311382463,1705071060888,-214.72459986,0.00039188,7]
[311382464,1705071060898,-16000.0,0.0003919,3]
[311382465,1705071060909,-150.0,0.000392,30]
[311382466,1705071060922,-156.05480545,0.00039211,7]
[311382467,1705071060934,-216.9968171,0.0003922,30]
[311382468,1705071060945,-243.56161504,0.00039225,7]
[311382469,1705071060955,-214.72459986,0.00039234,7]
[311382470,1705071060966,-157.49412757,0.00039241,7]
[311382471,1705071060977,-361.94,0.0003926,2]
[311382472,1705071060988,-153.84,0.00039269,2]
[311382473,1705071061000,-214.72459986,0.00039297,7]
[311382474,1705071061010,-2790.4,0.000393,7]
[311382475,1705071061021,-16252.65,0.000393,7]
[311382476,1705071061032,-299.0,0.000393,7]
[311382477,1705071061042,-407.37,0.00039305,2]
[311382478,1705071061053,-151.88,0.00039305,2]
[311382479,1705071061064,-311.09,0.00039305,2]
[311382480,1705071061074,-150.0,0.00039305,2]
[311382481,1705071061084,-150.0,0.00039305,2]
[311382482,1705071061095,-417.82,0.00039305,2]
[311382483,1705071061106,-293.92,0.00039305,2]
[311382484,1705071061116,-150.0,0.00039328,2]
[311382485,1705071061126,-150.0,0.00039328,2]
[311382486,1705071061137,-300.0,0.00039328,2]
[311382487,1705071061148,-150.0,0.00039328,2]
[311382488,1705071061158,-150.0,0.00039328,2]
[311382489,1705071061170,-150.0,0.00039328,2]
[311382490,1705071061181,-150.0,0.00039328,2]
[311382491,1705071061194,-150.0,0.00039328,2]
[311382492,1705071061205,-408.0,0.00039328,2]
[311382493,1705071061215,-314.16,0.00039328,2]
[311382494,1705071061227,-408.0,0.00039328,2]
[311382495,1705071061237,-314.16,0.00039328,2]
[311382496,1705071061248,-150.0,0.00039328,2]
[311382497,1705071061258,-685.86,0.00039328,2]
[311382498,1705071061270,-314.16,0.00039328,2]
[311382499,1705071061281,-150.0,0.00039328,2]
[311382500,1705071061291,-417.82,0.00039328,2]
[311382501,1705071061302,-150.0,0.00039328,2]
[311382502,1705071061312,-314.16,0.00039328,2]
[311382503,1705071061322,-150.0,0.00039328,2]
[311382504,1705071061332,-300.0,0.00039343,2]
[311382505,1705071061342,-150.0,0.00039343,2]
[311382506,1705071061353,-150.0,0.00039343,2]
[311382507,1705071061364,-150.0,0.00039343,2]
[311382508,1705071061375,-150.0,0.00039343,2]
[311382509,1705071061386,-150.0,0.00039343,2]
[311382510,1705071061397,-150.0,0.00039343,2]
[311382511,1705071061408,-300.0,0.00039343,2]
[311382512,1705071061422,-155.4801192,0.0003936,7]
[311382513,1705071061433,-1681.09588,0.0003936,2]
[311382514,1705071061443,-500.0,0.0003936,7]
[311382515,1705071061453,-176.03023859,0.00039361,7]
[311382516,1705071061464,-205.0,0.00039371,16]
[311382517,1705071061474,-153.80314388,0.00039374,7]
[311382518,1705071061483,-150.0,0.00039379,2]
[311382519,1705071061493,-500.0,0.00039396,2]
[311382520,1705071061502,-150.0,0.000394,30]
[311382521,1705071061512,-9232.78,0.000394,7]
[311382522,1705071061521,-150.0,0.000394,28]
[311382523,1705071061531,-156.05480545,0.00039403,7]
[311382524,1705071061541,-1000.0,0.00039424,10]
[311382525,1705071061551,-176.03023859,0.00039491,7]
[311382526,1705071061560,-153.80314388,0.00039498,7]
[311382527,1705071061570,-5000.0,0.000395,25]
[311382528,1705071061580,-5000.0,0.000395,4]
[311382529,1705071061591,-155.4801192,0.00039507,7]
[311382530,1705071061604,-243.56161504,0.00039525,7]
[311382531,1705071061614,-1027.0,0.00039546,2]
[311382532,1705071061624,-158.67495794,0.00039565,7]
[311382533,1705071061633,-150.0,0.000396,30]
[311382534,1705071061643,-1539.79,0.0003963,2]
[311382535,1705071061652,-151.63773496,0.00039639,7]
[311382536,1705071061664,-1000.0,0.00039652,10]
[311382537,1705071061674,-1000.0,0.00039652,10]
[311382538,1705071061683,-1000.0,0.00039652,10]
[311382539,1705071061693,-1000.0,0.00039652,10]
[311382540,1705071061703,-3538.0,0.0003969,3]
[311382541,1705071061712,-2790.4,0.000397,7]
[311382542,1705071061722,-16252.65,0.000397,7]
[311382543,1705071061731,-151.0,0.000397,7]
[311382544,1705071061741,-8000.0,0.000397,2]
[311382545,1705071061750,-829.95098124,0.000397,2]
[311382546,1705071061765,-391.67611145,0.000397,2]
[311382547,1705071061777,-4531.0,0.000397,2]
[311382548,1705071061789,-1143.161122,0.000397,2]
[311382549,1705071061799,-1702.20881862,0.00039707,5]
[311382550,1705071061811,-765.40750649,0.00039707,5]
[311382551,1705071061824,-407.31334039,0.00039707,5]
[311382552,1705071061836,-1932.98799178,0.00039707,5]
[311382553,1705071061845,-152.45486422,0.00039756,7]
[311382554,1705071061856,-156.05480545,0.00039756,7]
[311382555,1705071061867,-36.75233855,0.00039758,2]
[311382556,1705071061879,-113.24766145,0.00039758,2]
[311382557,1705071061889,-200.0,0.00039758,2]
[311382558,1705071062375,-19779.0,0.00039758,2]
[311382559,1705071062386,-150.0,0.000398,30]
[311382560,1705071062396,-386.25174899,0.000398,30]
[311382561,1705071062411,-16468.79961458,0.000398,30]
[311382562,1705071062445,208.84882825,0.0002007,2]
[311382563,1705071062489,155.0,0.0002007,2]
[311382564,1705071062589,360.58392018,0.0002007,2]
[311382565,1705071062671,204.35761727,0.0002007,2]
[311382566,1705071062708,247.01828226,0.0002007,2]
[311382567,1705071062884,155.0,0.0002007,2]
[311382568,1705071062967,763.36808933,0.00021678,2]
[311382569,1705071063010,851.03956512,0.0002007,2]
[311382570,1705071063042,250.0,0.00022483,2]
[311382571,1705071063122,165.46285681,0.0002007,2]
[311382572,1705071063170,289.23560706,0.00022,4]
[311382573,1705071063242,234.59607502,0.0002007,2]
[311382574,1705071063290,7417.37716852,0.0002007,2]
[311382575,1705071063321,500.0,0.0002007,2]
[311382576,1705071063379,50510.78554689,0.0002007,2]
[311382578,1705071065404,17892.64413162,0.00022479,2]
[311382579,1705071065430,12402.00946838,0.00022479,2]
[311382580,1705071068320,500.0,0.00022482,2]
[311382582,1705071091509,500.0,0.00022582,7]
[311382583,1705071109686,629.1722,0.0002248,2]
[311382584,1705071128234,2000.0,0.00022441,2]
[311382585,1705071133779,200.0,0.000221,8]
[311382586,1705071134962,851.03956512,0.0002248,4]
[311382587,1705071135872,500.0,0.000222,8]
[311382588,1705071136289,500.0,0.00022441,2]
[311382589,1705071137964,700.0,0.000223,8]
[311382590,1705071140050,1000.0,0.000224,8]
[311382591,1705071142135,1200.0,0.000225,8]
[311382592,1705071150124,166.87,0.00022175,2]
[311382593,1705071150965,851.03956512,0.0002248,4]
[311382594,1705071152935,5178.1457,0.00022479,2]
[311382595,1705071154756,19755.0846,0.0002248,2]
[311382596,1705071158949,262.55730004,0.00022,2]
[311382597,1705071166569,843.8821,0.00022479,2]
[311382598,1705071171221,1214.63437944,0.00020696,5]
[311382599,1705071174992,446.44252097,0.0002248,4]
[311382601,1705071187282,22836.23,0.00022071,2]
[311382602,1705071202920,1000.0,0.0002248,2]
[311382603,1705071212110,1000.0,0.00021882,2]
[311382604,1705071220453,1191.4782,0.0002248,2]
[311382606,1705071273913,655.22,0.00021857,2]
[311382607,1705071288668,250.0,0.00021857,2]
[311382609,1705071338558,189.18,0.00022037,2]
[311382610,1705071374789,174.54,0.00021823,2]
[311382611,1705071375026,174.54,0.00022259,2]
[311382665,1705071443851,175.63,0.0001987,2]
[311382666,1705071444353,175.63,0.00022134,2]
[311382667,1705071452135,165.39,0.00021788,2]
[311382669,1705071483799,385.9407,0.00022482,2]
[311382670,1705071485230,157.51,0.00021767,2]
[311382671,1705071489175,150.0,0.00022,2]
[311382672,1705071562174,154.17,0.00021907,2]
[311382673,1705071562389,154.17,0.00022071,2]
[311382674,1705071562809,154.17,0.00022234,2]
[311382675,1705071563033,154.17,0.00022397,2]
[311382676,1705071564419,35307.06920701,0.000225,2]
[311382677,1705071598806,523.28822419,0.00022582,30]
[311382678,1705071666204,200.0,0.000217,2]
[311382679,1705071671471,2000.0,0.00021695,2]
[311382680,1705071711083,500.0,0.00022582,7]
[311382681,1705071716059,5882.2471,0.0002243,2]
[311382682,1705071721077,160.93328733,0.00022423,2]
[311382683,1705071796836,288.9937,0.00022482,2]
[311382684,1705071835990,500.0,0.00022582,30]
[311382685,1705071879849,158.06,0.00019825,2]
[311382686,1705071880380,158.06,0.00022089,2]
[311382687,1705071934089,154.36,0.00021761,2]
[311382688,1705071957835,419.41599691,0.00022499,2]
[311382689,1705071971850,418.36877704,0.00021677,2]
[311382690,1705071976680,2608.64505401,0.00022499,2]
[311382691,1705071982729,252.65442073,0.00022499,2]
[311382692,1705071985718,394.66966751,0.00022499,2]
[311382693,1705071985791,202.44330084,0.00022499,2]
[311382694,1705071989824,300.93559721,0.00022499,2]
[311382695,1705071990100,158.48029498,0.00022499,2]
[311382696,1705071992063,1000.0,0.00022499,2]
[311382697,1705071997720,393.27437522,0.00022354,2]
[311382698,1705072007991,1000.0,0.00021903,2]
[311382699,1705072018217,-173.73555236,0.000225,2]
[311382700,1705072018845,-150.0,0.000225,2]
[311382701,1705072019303,-150.0,0.000225,2]
[311382702,1705072019849,-150.0,0.000225,2]
[311382703,1705072020663,-150.0,0.000225,2]
[311382704,1705072024127,-150.0,0.000225,2]
[311382705,1705072024538,-150.0,0.000225,2]
[311382706,1705072025343,-150.0,0.000225,2]
[311382707,1705072025995,721.64166305,0.00021903,2]
[311382708,1705072027087,-1674.68139356,0.000225,2]
[311382709,1705072027109,-171.68625232,0.00022559,2]
[311382710,1705072027132,-154.17,0.0002256,2]
[311382711,1705072027153,-55.49844867,0.0002256,2]
[311382712,1705072040370,450.0,0.00020096,2]
[311382713,1705072045999,623.73555236,0.00021903,2]
[311382714,1705072065326,3295.8524,0.00022482,2]
[311382715,1705072066190,3746.14428864,0.00019996,2]
[311382716,1705072069347,3186.46864652,0.00021677,2]
[311382717,1705072081992,1000.0,0.00021903,2]
[311382719,1705072089848,280.79430241,0.00022354,2]
[311382720,1705072092793,2000.0,0.0002175,2]
[311382721,1705072101520,42909.0,0.00022356,2]
[311382722,1705072108578,840.0,0.00021706,2]
[311382723,1705072117106,23900.0,0.00021706,2]
[311382724,1705072136447,1748.39405739,0.00022458,2]
[311382725,1705072143807,2432.2025,0.00022482,2]
[311382726,1705072145234,154.17,0.0002196,2]
[311382727,1705072155384,166.55019962,0.00022459,2]
[311382728,1705072160313,166.55019961,0.00022482,2]
[311382729,1705072178115,554.44353294,0.00022482,2]
[311382730,1705072205491,336.0320102,0.00022458,2]
[311382745,1705072221642,789.8151,0.00022457,2]
[311382779,1705072231683,-1851.25308844,0.00022514,2]
[311382780,1705072231697,-465.84666728,0.00022514,2]
[311382781,1705072231707,-939.56400894,0.00022514,2]
[311382782,1705072231717,-12.75927026,0.00022514,2]
[311382786,1705072231755,-207.28904547,0.00022514,2]
[311382788,1705072231764,-473.8673768,0.00022515,2]
[311382790,1705072231774,-2898.41694592,0.00022515,2]
[311382792,1705072231783,-494.02868803,0.00022516,2]
[311382794,1705072231792,-236.17727712,0.00022516,2]
[311382796,1705072231802,-473.8673768,0.00022517,2]
[311382798,1705072231812,-270.50240422,0.00022517,2]
[311382801,1705072231822,-259.87169978,0.00022518,2]
[311382803,1705072231832,-269.68179986,0.00022518,2]
[311382804,1705072231841,-3325.25210067,0.00022518,2]
[311382806,1705072231850,-1200.0,0.00022518,2]
[311382808,1705072231859,-1202.14844517,0.00022519,2]
[311382809,1705072231869,-2142.99004246,0.00022519,2]
[311382810,1705072231879,-2018.10308734,0.00022519,2]
[311382811,1705072231888,-554.44353284,0.0002252,2]
[311382812,1705072231900,-5628.33482324,0.00022526,2]
[311382813,1705072231913,-1031.76632145,0.00022526,2]
[311382814,1705072231925,-641.78023561,0.00022526,2]
[311382815,1705072231937,-632.83449757,0.00022526,2]
[311382816,1705072231949,-648.14779686,0.00022526,2]
[311382817,1705072231961,-339.95296193,0.00022526,2]
[311382818,1705072231973,-335.54621629,0.00022526,2]
[311382819,1705072231985,-928.53687171,0.00022526,2]
[311382820,1705072232000,-357.11918933,0.00022526,2]
[311382821,1705072232010,-599.78868677,0.00022526,2]
[311382822,1705072232034,-468.5699798,0.00022526,2]
[311382823,1705072232063,-3414.20184922,0.00022526,2]
[311382824,1705072232073,-591.13011307,0.00022526,2]
[311382834,1705072240098,-326.45,0.00022512,2]
[311382840,1705072240130,-1561.61243048,0.00022512,2]
[311382843,1705072240140,-514.98040546,0.00022513,2]
[311382844,1705072240150,-111280.94784707,0.00022526,2]
[311382848,1705072240231,-7365.98698415,0.00022526,2]
[311382850,1705072240244,-565.34466925,0.00022526,2]
[311382851,1705072240256,-12484.21135069,0.00022526,2]
[311382852,1705072240265,-1656.42293049,0.00022527,2]
[311382853,1705072240275,-3929.69462296,0.00022527,2]
[311382854,1705072240284,-4346.81728077,0.00022527,2]
[311382855,1705072240294,-241.4898151,0.00022528,2]
[311382856,1705072240306,-72.42848425,0.00022528,2]
[311382857,1705072240315,-9026.13231575,0.00022528,2]
[311382858,1705072240329,-481.70408771,0.00022528,2]
[311382859,1705072240341,-1258.45896066,0.00022528,2]
[311382860,1705072240353,-315.78805264,0.00022528,2]
[311382861,1705072240366,-765.44000077,0.00022528,2]
[311382884,1705072240886,-981.33783082,0.00022528,2]
[311382886,1705072240897,-280.0,0.00022528,2]
[311382888,1705072240914,-1631.5164132,0.00022528,2]
[311382891,1705072240925,-636.9005323,0.00022528,2]
[311382893,1705072240938,-1369.49845916,0.00022528,2]
[311382895,1705072240947,-154.17,0.00022532,2]
[311382897,1705072240957,-165.85748834,0.00022547,2]
[311382899,1705072240966,-2839.8740525,0.0002255,2]
[311382901,1705072240978,-2579.75145553,0.0002255,2]
[311382903,1705072240990,-386.19889246,0.0002255,2]
[311382906,1705072241005,-696.17559951,0.0002255,2]
[311382908,1705072241015,-150.0,0.0002255,2]
[311382910,1705072241024,-638.23855753,0.00022552,2]
[311382912,1705072241036,-9361.75144247,0.00022552,2]
[311382914,1705072241045,-686.52,0.00022552,2]
[311382916,1705072241055,-15731.82181824,0.00022555,2]
[311382919,1705072241068,-3202.60378573,0.00022555,2]
[311382921,1705072241078,-999.99,0.00022555,2]
[311382923,1705072241087,-1434.04271969,0.00022557,2]
[311382925,1705072241096,-27037.19172346,0.00022557,2]
[311382927,1705072241107,-45379.20046447,0.00022557,2]
[311382929,1705072241118,-434907.64744849,0.00022557,2]
[311382932,1705072241131,-353.15536203,0.00022557,2]
[311382942,1705072241220,-1410.69300404,0.00022557,2]
[311382968,1705072241450,-809.64998527,0.00022557,2]
[311382970,1705072241462,-7392.7206287,0.00022557,2]
[311382972,1705072241474,-5018.87825805,0.00022557,2]
[311382975,1705072241484,-23333.25868379,0.00022557,2]
[311382977,1705072241496,-101846.84420276,0.00022557,2]
[311382979,1705072241506,-554.44353284,0.00022558,2]
[311382981,1705072241515,-167.58210242,0.00022559,2]
[311382983,1705072241525,-167.58210242,0.00022559,2]
[311382985,1705072241534,-167.58210242,0.00022559,2]
[311382987,1705072241544,-1871.52825852,0.0002256,2]
[311382989,1705072241556,-84.85174148,0.0002256,2]
[311382992,1705072241566,-499.99,0.00022568,2]
[311382994,1705072241576,-418.95927661,0.00022569,2]
[311382996,1705072241585,-350.39897191,0.00022579,2]
[311382998,1705072241597,-368.77102809,0.00022579,2]
[311383000,1705072241606,-305.44201168,0.0002258,2]
[311383002,1705072241615,-1000.0,0.0002258,2]
[311383004,1705072241626,-251.33634747,0.0002258,2]
[311383006,1705072241636,-193.73932768,0.0002258,2]
[311383008,1705072241648,-302.51205499,0.0002258,2]
[311383010,1705072241657,-190.68805738,0.0002258,2]
[311383012,1705072241666,-223.7152768,0.0002258,2]
[311383014,1705072241675,-447.32874818,0.0002258,2]
[311383016,1705072241684,-2943.34420832,0.0002258,2]
[311383018,1705072241694,-2849.84875538,0.0002258,2]
[311383020,1705072241703,-524.01619295,0.0002258,2]
[311383022,1705072241712,-179.994148,0.0002258,2]
[311383024,1705072241721,-155.0,0.0002258,2]
[311383026,1705072241731,-177.6089,0.0002258,2]
[311383028,1705072241740,-7770.70671844,0.0002258,2]
[311383030,1705072241750,-397.6832477,0.0002258,2]
[311383033,1705072241759,-302.40645964,0.0002258,2]
[311383035,1705072241768,-1706.85378265,0.0002258,2]
[311383036,1705072241777,-155.0,0.0002258,2]
[311383039,1705072241787,-155.37583861,0.0002258,2]
[311383041,1705072241796,-680.09267405,0.0002258,2]
[311383043,1705072241805,-173.89319056,0.0002258,2]
[311383045,1705072241814,-2104.26518646,0.0002258,2]
[311383047,1705072241823,-532.39415852,0.0002258,2]
[311383049,1705072241833,-694.54655745,0.0002258,2]
[311383051,1705072241842,-249.9590989,0.0002258,2]
[311383053,1705072241851,-500.0,0.0002258,2]
[311383055,1705072241861,-500.0,0.0002258,2]
[311383057,1705072241870,-500.0,0.0002258,2]
[311383059,1705072241880,-500.0,0.0002258,2]
[311383061,1705072241890,-500.0,0.0002258,2]
[311383063,1705072241899,-500.0,0.0002258,2]
[311383065,1705072241908,-500.0,0.0002258,2]
[311383067,1705072241918,-500.0,0.0002258,2]
[311383069,1705072241927,-500.0,0.0002258,2]
[311383071,1705072241935,-500.0,0.0002258,2]
[311383073,1705072241945,-712.72,0.00022581,2]
[311383075,1705072241954,-730.1,0.00022581,2]
[311383077,1705072241963,-2234.4,0.00022581,2]
[311383079,1705072241973,-1011.5,0.00022581,2]
[311383081,1705072241982,-297.15680252,0.00022581,2]
[311383083,1705072241991,-278.16218192,0.00022581,2]
[311383085,1705072242000,-9399.27371203,0.00022581,2]